Cogmind - Beta 14 @@@ ROGUE MODE // 2024.10.01 @ 21:22:44 Player: siona Result: Self-destructed Performance ------------- Evolutions (2) 1000 Regions Visited (3) 600 Robots Destroyed (48) 240 Value Destroyed (1291) 1291 Prototype IDs (4) 80 Alien Tech Used (0) 0 Bonus (13) 13 TOTAL SCORE: 3224 Bonus ------- High Alert Combat Kills 13 Cogmind --------- Core Integrity 74/550 Matter 123/300 Energy 160/160 System Corruption 0% Temperature Cool (9) Movement Core (150) Ox2 Location -8/Materials Parts ------- > --- POWER (1) -------- Light Nuclear Core > --- PROPULSION (4) --- (None) > --- UTILITY (4) ------ (None) > --- WEAPON (2) ------- Minigun > --- INVENTORY (5) ---- Cooling System Large Matter Pod (0) Machine Analyzer Signal Interpreter Peak State ------------ > --- POWER ------------ (None) > --- PROPULSION ------- Aerolev Unit Aerolev Unit Aerolev Unit Aerolev Unit > --- UTILITY ---------- Small Storage Unit Structural Scanner Hardened Light Armor Plating > --- WEAPON ----------- Enhanced Autogun Enhanced Autogun > --- INVENTORY -------- Cooling System Large Matter Pod Machine Analyzer Signal Interpreter Light Armor Plating EM Pulse Cannon EM Pulse Cannon [Rating: 29] Favorites ----------- Power Ion Engine Engine Ion Engine Power Core Light Nuclear Core Propulsion Aerolev Unit Treads Light Treads Leg Aluminum Leg Hover Unit Aerolev Unit Utility Small Storage Unit Device Structural Scanner Storage Small Storage Unit Protection Hardened Medium Armor Plating Weapon Flak Cannon Energy Gun Medium Laser Energy Cannon EM Pulse Cannon Ballistic Gun Enhanced Autogun Ballistic Cannon Flak Cannon Build | -11 -10 -9 -8 ------- Run | Yrd Mat Mat Mat Slots Evolved 4 | . . 2 2 Power . | . . . . Propulsion 2 | . . 1 1 Utility 2 | . . 1 1 Weapon . | . . . . Parts Attached 53 | 6 8 18 21 Power 8 | 1 2 2 3 Engine 6 | 1 2 2 1 Core 2 | . . . 2 Reactor . | . . . . Propulsion 12 | 2 2 6 2 Treads 3 | 2 . . 1 Leg 5 | . 2 3 . Wheel . | . . . . Hover 4 | . . 3 1 Flight . | . . . . Utility 13 | 1 1 5 6 Device 3 | . 1 1 1 Storage 3 | 1 . 2 . Processor . | . . . . Hackware . | . . . . Protection 7 | . . 2 5 Artifact . | . . . . Weapon 20 | 2 3 5 10 Energy Gun 5 | 1 3 1 . Energy Cannon 3 | . . 1 2 Ballistic Gun 6 | 1 . 3 2 Ballistic Cannon 6 | . . . 6 Launcher . | . . . . Special Weapon . | . . . . Impact Weapon . | . . . . Slashing Weapon . | . . . . Piercing Weapon . | . . . . Special Melee Weapon . | . . . . Unidentified Prototypes 2 | . . 2 . Parts Lost 29 | . 6 4 19 Power 4 | . 1 1 2 Propulsion 7 | . 2 1 4 Utility 8 | . . 1 7 Weapon 10 | . 3 1 6 Highest Loss Streak 8 | . 4 1 8 To Critical Strikes . | . . . . Average Slot Usage (%) 73 | . 88 91 55 Engine 7 | . 12 10 2 Treads 4 | . 18 . . Leg 5 | . 6 12 . Hover 11 | . . 15 13 Device 9 | . 10 14 4 Storage 10 | . 14 11 8 Protection 6 | . . 6 10 Energy Gun 4 | . 15 4 . Energy Cannon 3 | . . 5 3 Ballistic Gun 5 | . 8 10 . Ballistic Cannon 4 | . . . 9 Peak Build Rating 29 | 6 7 27 29 Average Rating 14 | 4 6 17 17 On Entrance 9 | . 6 7 25 Naked Turns . | . . . . Heaviest Build 44 | 14 15 27 44 Greatest Support 40 | 40 40 33 32 Greatest Overweight (x) 14 | . 1 2 14 Average Overweight (x) 1 | . . . 5 Largest Inventory Capacity 10 | 8 8 10 8 Average Capacity 7 | 6 8 8 7 Most Carried 10 | 4 6 10 8 Average Carried 6 | 2 4 6 6 Final Capacity 8 | 8 8 8 5 Final Carried 8 | 4 2 8 4 Class Distribution -------------------- 92% | Mutant 7% | Scavenger-Mutant Dominant Class ---------------- Mutant | -10/Materials Mutant | -9/Materials Mutant | -8/Materials Resources | -11 -10 -9 -8 ----------- Run | Yrd Mat Mat Mat Matter Collected 1413 | 221 212 483 497 Remotely . | . . . . Salvage Created 1808 | . 463 897 448 Parts 105 | . 23 56 26 Haulers Intercepted 1 | . . 1 . Recyclers Shooed 7 | . 2 1 4 Parts Field Recycled . | . . . . Retrieved Matter . | . . . . Parts Self-Destructed . | . . . . Prevented . | . . . . Kills | -11 -10 -9 -8 ------- Run | Yrd Mat Mat Mat Combat Hostiles Destroyed 35 | . 11 16 8 Guns 23 | . 10 12 1 Cannons 11 | . . 4 7 AOE 1 | . 1 . . Classes Destroyed 12 | . 4 6 2 Worker 2 | . . 1 1 Builder 2 | . 1 . 1 Hauler 1 | . . 1 . Recycler 5 | . . 2 3 Mechanic 1 | . . 1 . Watcher 2 | . 1 1 . Swarmer 8 | . 3 4 1 Grunt 19 | . 8 7 4 Duelist 1 | . . 1 . Sentry 5 | . . 4 1 Hunter 1 | . . . 1 Heavy 1 | . . . 1 Best Kill Streak 5 | . 3 5 2 Combat Bots Only 3 | . 3 3 2 Max Kills in Single Turn 1 | . 1 1 1 Gunslinging . | . . . . Exploded 1 | . 1 . . Melee . | . . . . Uniques/NPCs Destroyed . | . . . . Combat | -11 -10 -9 -8 -------- Run | Yrd Mat Mat Mat Hostile Shots Fired 471 | . 100 87 284 Missed 127 | . 22 28 77 Damage Taken 4702 | . 848 760 3094 Core 707 | . 143 88 476 Absorbed by Shields . | . . . . Core Remaining (%) 73 | 100 42 78 . Volleys Fired 186 | . 56 77 53 Largest 2 | . 2 2 2 Hottest 126 | . 80 105 126 Shots Fired 320 | . 89 143 88 Gun 225 | . 89 118 18 Cannon 95 | . . 25 70 Launcher . | . . . . Special . | . . . . Kinetic 226 | . 41 103 82 Thermal 69 | . 44 25 . Explosive . | . . . . Electromagnetic 25 | . 4 15 6 Robot Hit Streak 12 | . 12 11 6 Robot Miss Streak 12 | . 5 8 12 Penetration Max . | . . . . Secondary Targets 2 | . . 2 . Max Gunslinging Chain 1 | . . 1 . Shots Hit Robots 204 | . 54 85 65 Core Hits 132 | . 27 34 71 Critical Kills . | . . . . Critical Parts Destroyed . | . . . . Critical Strikes 1 | . 1 . . Burn 1 | . 1 . . Melee Attacks . | . . . . Impact . | . . . . Slashing . | . . . . Piercing . | . . . . Sneak Attacks . | . . . . Combat Hostiles . | . . . . Follow-up Attacks . | . . . . Damage Inflicted 3391 | . 754 1433 1204 Guns 2044 | . 709 1185 150 Cannons 1302 | . . 248 1054 Explosions 45 | . 45 . . Melee . | . . . . Ramming . | . . . . Kinetic 2537 | . 329 1056 1152 Thermal 618 | . 370 248 . Explosive . | . . . . Electromagnetic 236 | . 55 129 52 Impact . | . . . . Slashing . | . . . . Piercing . | . . . . Highest Corruption 3 | . . 3 . Average Corruption 3 | . . 3 . Corruption Purged . | . . . . Corruption Blocked . | . . . . Effects 7 | . . 7 . Message Errors 1 | . . 1 . Matter Fused 1 | . . 1 . Heat Flow Errors 1 | . . 1 . Energy Discharges 1 | . . 1 . Alerts 2 | . . 2 . Weapon Failures 1 | . . 1 . Overload Shots . | . . . . Overflow Damage 2 | . 2 . . Projectiles . | . . . . Explosions 2 | . 2 . . Melee . | . . . . Knockbacks 28 | . . . 28 Impact . | . . . . Kinetic 25 | . . . 25 Secondary 3 | . . . 3 Self-Inflicted Damage 39 | . 39 . . Shots 1 | . 1 . . Rammed . | . . . . Targets Rammed 1 | . . 1 . Kicked 1 | . . 1 . Crushed . | . . . . Highest Temperature 376 | . 153 376 288 Average Temperature 109 | . 47 127 124 Received Heat Transfer 1389 | . 318 252 819 Effects 5 | . . 4 1 Energy Bleed 1 | . . . 1 Interference 4 | . . 4 . Siege Activations . | . . . . Robots Corrupted . | . . . . Combat Hostiles . | . . . . Parts Fried 1 | . . 1 . Impact Corruptions . | . . . . Robots Melted . | . . . . Combat Hostiles . | . . . . Parts Melted 4 | . 4 . . Heat Transferred 1483 | . 965 518 . Parts Sabotaged . | . . . . Parts Stolen . | . . . . Parts Stripped . | . . . . Power Chain Reactions 1 | . 1 . . Alert | -11 -10 -9 -8 ------- Run | Yrd Mat Mat Mat Peak Influence 438 | . 318 438 199 Initial 184 | . . 52 184 Average 116 | . 133 160 91 Maximum Alert Level 2 | . 1 2 . Low Security (%) 86 | 100 81 66 100 Level 1 12 | . 18 29 . Level 2 . | . . 3 . Level 3 . | . . . . Level 4 . | . . . . Level 5 . | . . . . High Security . | . . . . Max Security . | . . . . Squads Dispatched 9 | . 2 2 5 Investigation 2 | . . 2 . Extermination . | . . . . Reinforcement 4 | . 2 . 2 Assault . | . . . . Garrison 3 | . . . 3 Intercept . | . . . . Searches Triggered . | . . . . Construction Impeded . | . . . . Haulers Reinforced . | . . . . Active Scanning Responses . | . . . . Cargo Convoy Interrupts . | . . . . Stealth | -11 -10 -9 -8 --------- Run | Yrd Mat Mat Mat Distress Signals 3 | . 1 1 1 Communications Jammed . | . . . . Distress Signals . | . . . . Times Spotted 79 | . 26 30 23 Peak Tracking Total 11 | . 7 9 11 Tactical Retreats 8 | . 1 3 4 Traps | -11 -10 -9 -8 ------- Run | Yrd Mat Mat Mat Traps Triggered . | . . . . Indirectly . | . . . . Trap Hack Attempts . | . . . . Triggered . | . . . . Disarmed . | . . . . Reprogrammed . | . . . . Reused . | . . . . Traps Extracted . | . . . . Installed . | . . . . Triggered . | . . . . Machines | -11 -10 -9 -8 ---------- Run | Yrd Mat Mat Mat Machines Disabled 1 | . 1 . . Max in Single Turn 1 | . 1 . . Machines Repaired . | . . . . Machines Dismantled . | . . . . Machines Sabotaged . | . . . . Overloaded Fab Kills . | . . . . Hacking | -11 -10 -9 -8 --------- Run | Yrd Mat Mat Mat Machines Accessed 3 | . . 3 . Terminals 3 | . . 3 . Fabricators . | . . . . Repair Stations . | . . . . Recycling Units . | . . . . Scanalyzers . | . . . . Garrison Access . | . . . . Total Hacks 8 | . . 8 . Successful 3 | . . 3 . Failed 5 | . . 5 . Catastrophic . | . . . . Database Lockouts . | . . . . Manual . | . . . . Terminals 8 | . . 8 . Fabricators . | . . . . Repair Stations . | . . . . Recycling Units . | . . . . Scanalyzers . | . . . . Garrison Access . | . . . . Terminal Hacks 3 | . . 3 . Record 2 | . . 2 . Prototype ID Bank 1 | . . 1 . Fabricator Hacks . | . . . . Repair Station Hacks . | . . . . Recycling Unit Hacks . | . . . . Scanalyzer . | . . . . Garrison Access Hacks . | . . . . Unauthorized Hacks . | . . . . Terminals . | . . . . Fabricators . | . . . . Repair Stations . | . . . . Recycling Units . | . . . . Scanalyzers . | . . . . Garrison Access . | . . . . Data Cores Recovered . | . . . . Used . | . . . . Hacking Detections 2 | . . 2 . Full Trace Events 2 | . . 2 . Feedback Events . | . . . . Feedback Blocked . | . . . . Robot Schematics Acquired . | . . . . Robots Built . | . . . . Authchips . | . . . . Time . | . . . . Total Robot Build Rating . | . . . . Part Schematics Acquired . | . . . . Parts Built . | . . . . Authchips . | . . . . Time . | . . . . Total Part Build Rating . | . . . . Parts Repaired . | . . . . Time . | . . . . Parts Recycled . | . . . . Recycled Matter . | . . . . Retrieved Matter . | . . . . Retrieved Components . | . . . . Parts Scanalyzed . | . . . . Part Schematics Acquired . | . . . . Parts Damaged . | . . . . Bothacking | -11 -10 -9 -8 ------------ Run | Yrd Mat Mat Mat Used RIF Installer . | . . . . Robots Hacked . | . . . . Non-combat . | . . . . Combat . | . . . . Robot Hacks Applied . | . . . . Relay Couplers Released . | . . . . Fabnet Peak Effective % . | . . . . Robots Rewired . | . . . . Allies Hacked . | . . . . Hacks Repelled . | . . . . Allies | -11 -10 -9 -8 -------- Run | Yrd Mat Mat Mat Total Allies . | . . . . Largest Group . | . . . . Highest-Rated Group . | . . . . Highest-Rated Ally . | . . . . Total Orders . | . . . . Ally Attacks . | . . . . Total Damage . | . . . . Kills . | . . . . Allies Corrupted . | . . . . Allies Melted . | . . . . Intel | -11 -10 -9 -8 ------- Run | Yrd Mat Mat Mat Robot Analysis Total . | . . . . Derelict Logs Recovered . | . . . . Drone Launches . | . . . . Drone Recoveries . | . . . . Exploration | -11 -10 -9 -8 ------------- Run | Yrd Mat Mat Mat Turns Passed 2403 | 112 504 706 1081 Spaces Moved 1040 | 62 214 558 206 Core 187 | 5 . . 182 Treads 192 | 57 125 . 10 Legs 304 | . 89 215 . Wheels . | . . . . Hover 357 | . . 343 14 Flight . | . . . . Fastest Speed 38 | 50 120 42 38 Average Speed 150 | 151 153 79 339 Slowest Speed 750 | 160 190 260 750 Overloaded Moves . | . . . . Propulsion Burnouts . | . . . . Robots Hopped . | . . . . Cave-ins Triggered . | . . . . Exploration Rate (%) 26 | 4 42 48 12 Regions Visited 3 Branch Regions . Pre-discovered Areas . | . . . . Known Exits Taken . | . . . . Unknown Exits Taken 3 | 1 1 1 . Scrap Searched . | . . . . Spaces Dug . | . . . . Terrain Destroyed 5 | . 5 . . Melee . | . . . . Projectile . | . . . . AOE 5 | . 5 . . Terrain Rammed . | . . . . Walls Destroyed . | . . . . Machines Disabled . | . . . . Actions | -11 -10 -9 -8 --------- Run | Yrd Mat Mat Mat Total 1593 | 77 299 718 499 Wait 264 | 6 18 30 210 Move 1037 | 61 213 557 206 Hop . | . . . . Pick Up 28 | 4 3 17 4 Fast Attach 29 | 6 2 10 11 Attach 14 | . 5 1 8 Detach 2 | . . 2 . Swap 10 | . 1 7 2 Drop 22 | . 1 16 5 Fire 186 | . 56 77 53 Melee . | . . . . Ram . | . . . . Kick 1 | . . 1 . Crush . | . . . . Escape Stasis . | . . . . Rewire . | . . . . Trap . | . . . . Miscellaneous . | . . . . Route ------- -11/Scrapyard -10/Materials (discovered 2 exits: *Mat / [*Min]) -9/Materials (discovered 2 exits: [*Mat] / [*Min]) -8/Materials History --------- Turn | Location | Event 7 | -11/Scrapyard | Discovered new exit (range 15) 113 | -11/Scrapyard | Entered Materials 281 | -10/Materials | Discovered new exit (range 7) 309 | -10/Materials | Build established: Mutant 458 | -10/Materials | Core integrity fell below 50% 494 | -10/Materials | Lost 4 parts (2n2w) 589 | -10/Materials | Discovered new exit (range 13) 617 | -10/Materials | Entered another Materials area 617 | -9/Materials | Evolved 2 slots: Propulsion x1, Utility x1 1044 | -9/Materials | Discovered new exit (range 9) 1317 | -9/Materials | Discovered new exit (range 16) 1323 | -9/Materials | Entered another Materials area 1323 | -8/Materials | Evolved 2 slots: Propulsion x1, Utility x1 2092 | -8/Materials | Garrison activated, responded to threat 2203 | -8/Materials | Core integrity fell below 50% 2215 | -8/Materials | Lost 7 parts (1p1n3u2w) 2389 | -8/Materials | Core integrity fell below 20% 2404 | -8/Materials | Self-destructed Last Messages --------------- 02360_ S-10 Pest destroyed. 02362_ Hrd. Medium Armor Plating destroyed. 02363_ Acquired 6 matter. 02364_ K-01 Serf collects debris. 02368_ R-06 Scavenger destroyed. 02368_ Lgt. Treads destroyed. 02368_ K-01 Serf collects debris. 02370_ U-05 Engineer destroyed. 02371_ K-01 Serf collects debris. 02374_ Penetrated by Slug. 02374_ K-01 Serf collects debris. 02377_ Slug penetrates Wall. 02377_ K-01 Serf collects debris. 02383_ Slug penetrates Wall. 02386_ Minigun destroyed. 02387_ Wall collapses. 02397_ O-16 Technician: "IFF HANDSHAKE FAILED. SECURING TERMINAL." 02401_ ALERT: Hostiles spotted, dispatching reinforcements to Terminal M002. Map ----- +----------------------------------------------------+ | ?????????????????????????????????????????????????? | | ?????????????????????????????????????????????????? | | ?????????????????????????????????????????????????? | | ?????????????????????????????????????????????????? | | ???????????? +?????????????????????????????????? | | ???????????? #?????????????????????????????????? | | ???????????? #?????????????????????????????????? | | ???????????? #???###???????????????????????????? | | ???????????# #??? ????????????????????????????? | | ???????????# #?? ????????????????????????????? | | ???????????# #? "?????????????????????????????? | | ???????????# # "??????????????????????????????? | | ???????????# %=# ???????????????????????????????? | | ??????????? + ????????????????????????????????? | | ???????????# % #?????????????????????????????????? | | ???????????# #?????????????????????????????????? | | ############ ##????????????????????????????????? | | ########### ! ############?????????????????????? | | ! %! =%! ????????????????????? | | *[! =! [ =%! ????????????????????? | | %*[ ????????????????????? | | #######"### [ ##########???????????????????????? | | #### ###""#####?????????????????????????????? | | #??# ? # ^ #?????????????????????????????? | | #??# ??? # [ ! ########### """ ??????????????? | | #??# ?????# [ ! h s s @ g """ ??????????????? | | #??#??????# [[! ##s######## !#????????????? | | #?????????# ## #??????????????????????????? | | #?????????# " ## #??????????????????????????? | | #?????????# " ## #??????????????????????????? | | #?????????# "" ## #??????????????????????????? | | #?????????# ## ??????????????????????????? | | #?????????########### ??????????????????????????? | | #???????????????????# ??????????????????????????? | | ????????????????????? ??????????????????????????? | | ????????????????????? ??????????????????????????? | | ????????????????????? ??????????????????????????? | | ????????????????????? ??????????????????????????? | | ????????????????????? ??????????????????????????? | | ????????????????????? ??????????????????????????? | | ????????????????????? ??????????????????????????? | | ?????????????????????????????????????????????????? | | ?????????????????????????????????????????????????? | | ?????????????????????????????????????????????????? | | ?????????????????????????????????????????????????? | | ?????????????????????????????????????????????????? | | ?????????????????????????????????????????????????? | | ?????????????????????????????????????????????????? | | ?????????????????????????????????????????????????? | | ?????????????????????????????????????????????????? | +----------------------------------------------------+ Best States ------------- Heat Dissipation 38 Energy Generation 14 Energy Capacity 265 Matter Stores 300 Matter Capacity 300 Sight Range 16 Terrain Scan Density 10 Armor Coverage 675 Evasion (%) 56 Recoil Reduction 2 Item Schematics ----------------- None Robot Schematics ------------------ None Fabricated ------------ Nothing Alien Tech Used ----------------- None Achievements -------------- None Challenges ------------ None Game ------ Seed ThermicWeightMegatreads Manual? 0 Play Time 00:23:40 Cumulative 18.3 hours Start 2024.10.01 @ 20:59:17 End 2024.10.01 @ 21:22:44 Sessions 1 Manual Loads 0 Difficulty Rogue Special Mode None Game No. 36 Rogue 35 Adventurer 1 Explorer 0 Win Type - Total 0 Types 0/0/0/0/0/0/0/0/0 Lore% 13 Gallery% 21 Achievement% 19 Wizard Run 0 Options --------- Layout 1 ASCII 0 Keyboard 0 Movement Mouse Keybinds 0 Fullscreen 1 Font 32/SmallcapsGlow Map View 50x35 Zoom Use 0% Tactical HUD 1 Map Filters NONE Filters NONE Steam 1 RUN: d892b805-7028-403b-b95b-2117b99dae83